[Event "Titled Tuesday Blitz June 27 Late 2023"]
[White "Tristan, Leonardo"]
[Black "Nasir, Zehn"]
[WhiteFideId "113816"]
[BlackFideId "2613239"]
[WhiteElo "2764"]
[BlackElo "2547"]
[Result "1-0"]
[Round "2"]
[TimeControl "180+2"]
[Date "2023.06.27"]
[WhiteClock "0:00:14"]
[BlackClock "0:00:01"]
[Board "55"]

1. d4 {[%clk 0:03:00]}  Nf6 {[%clk 0:02:59]} 2. Nf3 {[%clk 0:03:01]}  d5 {[%clk 0:02:56]} 3. Bf4 {[%clk 0:03:01]}  c5 {[%clk 0:02:55]} 4. e3 {[%clk 0:03:01]}  Nc6 {[%clk 0:02:56]} 5. Nbd2 {[%clk 0:03:02]}  Bg4 {[%clk 0:02:52]} 6. c3 {[%clk 0:03:02]}  e6 {[%clk 0:02:52]} 7. Qb3 {[%clk 0:03:02]}  Qb6 {[%clk 0:02:52]} 8. Qxb6 {[%clk 0:03:01]}  axb6 {[%clk 0:02:53]} 9. Bb5 {[%clk 0:03:01]}  Bxf3 {[%clk 0:02:48]} 10. Nxf3 {[%clk 0:03:01]}  Be7 {[%clk 0:02:41]} 11. Ne5 {[%clk 0:02:49]}  Rc8 {[%clk 0:02:40]} 12. Nxc6 {[%clk 0:02:49]}  bxc6 {[%clk 0:02:41]} 13. Ba6 {[%clk 0:02:50]}  Rd8 {[%clk 0:02:10]} 14. a4 {[%clk 0:02:25]}  Bd6 {[%clk 0:02:02]} 15. Bxd6 {[%clk 0:01:58]}  Rxd6 {[%clk 0:02:03]} 16. a5 {[%clk 0:01:46]}  bxa5 {[%clk 0:01:50]} 17. dxc5 {[%clk 0:01:45]}  Rd7 {[%clk 0:01:49]} 18. Rxa5 {[%clk 0:01:38]}  Ne4 {[%clk 0:01:49]} 19. f3 {[%clk 0:01:35]}  Nf6 {[%clk 0:01:44]} 20. Bc8 {[%clk 0:01:17]}  Rc7 {[%clk 0:01:41]} 21. Bxe6 {[%clk 0:01:15]}  O-O {[%clk 0:01:24]} 22. Bf5 {[%clk 0:01:15]}  Rb8 {[%clk 0:01:25]} 23. b4 {[%clk 0:01:15]}  g6 {[%clk 0:01:24]} 24. Bd3 {[%clk 0:01:13]}  Re7 {[%clk 0:01:23]} 25. Kd2 {[%clk 0:01:13]}  Rbe8 {[%clk 0:01:23]} 26. Re1 {[%clk 0:01:13]}  Nh5 {[%clk 0:01:18]} 27. Ra6 {[%clk 0:01:13]}  Re6 {[%clk 0:01:18]} 28. c4 {[%clk 0:00:55]}  dxc4 {[%clk 0:01:14]} 29. Bxc4 {[%clk 0:00:56]}  Rf6 {[%clk 0:01:09]} 30. b5 {[%clk 0:00:49]}  Rd8+ {[%clk 0:01:01]} 31. Kc3 {[%clk 0:00:46]}  cxb5 {[%clk 0:00:50]} 32. Rxf6 {[%clk 0:00:47]}  Nxf6 {[%clk 0:00:51]} 33. Bxb5 {[%clk 0:00:48]}  Nd5+ {[%clk 0:00:43]} 34. Kc4 {[%clk 0:00:48]}  Nc7 {[%clk 0:00:43]} 35. Bc6 {[%clk 0:00:40]}  Rd2 {[%clk 0:00:43]} 36. Be4 {[%clk 0:00:30]}  Rxg2 {[%clk 0:00:40]} 37. c6 {[%clk 0:00:31]}  Rxh2 {[%clk 0:00:39]} 38. Kc5 {[%clk 0:00:31]}  f5 {[%clk 0:00:34]} 39. Bd5+ {[%clk 0:00:21]}  Kf8 {[%clk 0:00:30]} 40. Kd6 {[%clk 0:00:19]}  Nb5+ {[%clk 0:00:21]} 41. Kd7 {[%clk 0:00:18]}  Rd2 {[%clk 0:00:20]} 42. e4 {[%clk 0:00:18]}  Rc2 {[%clk 0:00:08]} 43. Rb1 {[%clk 0:00:14]}  Na7 {[%clk 0:00:03]} 44. c7 {[%clk 0:00:14]}  fxe4 {[%clk 0:00:03]} 45. fxe4 {[%clk 0:00:14]}  Rc5 {[%clk 0:00:01]} 46. Rb7 {[%clk 0:00:14]} 1-0


[Site "https://www.chess.com"]

[Event "Titled Tuesday Blitz June 27 Late 2023"]
[White "Golubev, Mikhail"]
[Black "Cruz, Jonathan"]
[WhiteFideId "14100983"]
[BlackFideId "3802124"]
[WhiteElo "2544"]
[BlackElo "2763"]
[Result "0-1"]
[Round "2"]
[TimeControl "180+2"]
[Date "2023.06.27"]
[WhiteClock "0:00:00"]
[BlackClock "0:00:02"]
[Board "56"]

1. e4 {[%clk 0:03:00]}  e5 {[%clk 0:02:58]} 2. Nf3 {[%clk 0:03:00]}  Nc6 {[%clk 0:02:58]} 3. Bc4 {[%clk 0:03:00]}  Be7 {[%clk 0:02:58]} 4. d4 {[%clk 0:02:49]}  exd4 {[%clk 0:02:56]} 5. Nxd4 {[%clk 0:02:48]}  Nf6 {[%clk 0:02:47]} 6. Nc3 {[%clk 0:02:47]}  O-O {[%clk 0:02:47]} 7. O-O {[%clk 0:02:47]}  d6 {[%clk 0:02:43]} 8. h3 {[%clk 0:02:42]}  Nxd4 {[%clk 0:02:39]} 9. Qxd4 {[%clk 0:02:41]}  Be6 {[%clk 0:02:39]} 10. Bb3 {[%clk 0:02:35]}  Kh8 {[%clk 0:02:21]} 11. Bg5 {[%clk 0:02:31]}  Nd7 {[%clk 0:02:18]} 12. Bxe7 {[%clk 0:02:21]}  Qxe7 {[%clk 0:02:18]} 13. f4 {[%clk 0:02:20]}  Bxb3 {[%clk 0:02:10]} 14. axb3 {[%clk 0:02:17]}  Nb6 {[%clk 0:02:09]} 15. Rae1 {[%clk 0:02:08]}  Rae8 {[%clk 0:02:06]} 16. Kh2 {[%clk 0:01:50]}  a6 {[%clk 0:01:58]} 17. e5 {[%clk 0:01:43]}  dxe5 {[%clk 0:01:46]} 18. Rxe5 {[%clk 0:01:42]}  Qf6 {[%clk 0:01:35]} 19. Ne4 {[%clk 0:01:22]}  Qc6 {[%clk 0:01:30]} 20. Rf2 {[%clk 0:00:41]}  f6 {[%clk 0:01:27]} 21. Rxe8 {[%clk 0:00:38]}  Rxe8 {[%clk 0:01:28]} 22. Nc3 {[%clk 0:00:36]}  h6 {[%clk 0:01:19]} 23. Rd2 {[%clk 0:00:36]}  Kh7 {[%clk 0:01:08]} 24. Qd3+ {[%clk 0:00:34]}  Kh8 {[%clk 0:01:08]} 25. Qd4 {[%clk 0:00:30]}  Kh7 {[%clk 0:00:59]} 26. Qd3+ {[%clk 0:00:30]}  Kg8 {[%clk 0:00:59]} 27. Qd4 {[%clk 0:00:26]}  Qe6 {[%clk 0:00:54]} 28. Nd5 {[%clk 0:00:20]}  Nxd5 {[%clk 0:00:44]} 29. Qxd5 {[%clk 0:00:20]}  Qxd5 {[%clk 0:00:44]} 30. Rxd5 {[%clk 0:00:20]}  Re2 {[%clk 0:00:44]} 31. Rc5 {[%clk 0:00:20]}  c6 {[%clk 0:00:42]} 32. Kg3 {[%clk 0:00:20]}  Kf7 {[%clk 0:00:40]} 33. Kf3 {[%clk 0:00:20]}  Rd2 {[%clk 0:00:41]} 34. Rc3 {[%clk 0:00:18]}  f5 {[%clk 0:00:30]} 35. g4 {[%clk 0:00:17]}  g6 {[%clk 0:00:26]} 36. gxf5 {[%clk 0:00:16]}  gxf5 {[%clk 0:00:26]} 37. Rc5 {[%clk 0:00:15]}  Kf6 {[%clk 0:00:26]} 38. Kg3 {[%clk 0:00:15]}  Re2 {[%clk 0:00:23]} 39. Kf3 {[%clk 0:00:15]}  Rd2 {[%clk 0:00:23]} 40. Kg3 {[%clk 0:00:15]}  Rd4 {[%clk 0:00:20]} 41. Kf3 {[%clk 0:00:15]}  Re4 {[%clk 0:00:20]} 42. Rc3 {[%clk 0:00:11]}  Re1 {[%clk 0:00:17]} 43. Re3 {[%clk 0:00:11]}  Rc1 {[%clk 0:00:13]} 44. Re2 {[%clk 0:00:10]}  Rg1 {[%clk 0:00:12]} 45. Rg2 {[%clk 0:00:08]}  Rb1 {[%clk 0:00:11]} 46. c3 {[%clk 0:00:07]}  Rd1 {[%clk 0:00:12]} 47. Re2 {[%clk 0:00:05]}  h5 {[%clk 0:00:08]} 48. b4 {[%clk 0:00:04]}  h4 {[%clk 0:00:07]} 49. Rg2 {[%clk 0:00:04]}  Rd3+ {[%clk 0:00:07]} 50. Kf2 {[%clk 0:00:03]}  Rxh3 {[%clk 0:00:08]} 51. Rg8 {[%clk 0:00:04]}  Rh2+ {[%clk 0:00:08]} 52. Kf3 {[%clk 0:00:04]}  Rxb2 {[%clk 0:00:09]} 53. Rh8 {[%clk 0:00:04]}  Rb3 {[%clk 0:00:08]} 54. Rh6+ {[%clk 0:00:03]}  Kg7 {[%clk 0:00:08]} 55. Rxh4 {[%clk 0:00:03]}  Rxc3+ {[%clk 0:00:09]} 56. Ke2 {[%clk 0:00:04]}  Rc4 {[%clk 0:00:09]} 57. Rh5 {[%clk 0:00:04]}  Rxf4 {[%clk 0:00:09]} 58. Ke3 {[%clk 0:00:02]}  Rxb4 {[%clk 0:00:10]} 59. Rxf5 {[%clk 0:00:01]}  Rb5 {[%clk 0:00:10]} 60. Rf1 {[%clk 0:00:02]}  a5 {[%clk 0:00:08]} 61. Kd4 {[%clk 0:00:02]}  Kg6 {[%clk 0:00:08]} 62. Kc4 {[%clk 0:00:02]}  a4 {[%clk 0:00:08]} 63. Ra1 {[%clk 0:00:01]}  Ra5 {[%clk 0:00:08]} 64. Kb4 {[%clk 0:00:02]}  Ra6 {[%clk 0:00:09]} 65. Kc5 {[%clk 0:00:02]}  Kf5 {[%clk 0:00:09]} 66. Kd6 {[%clk 0:00:01]}  Ke4 {[%clk 0:00:09]} 67. Kc7 {[%clk 0:00:01]}  c5 {[%clk 0:00:03]} 68. Kxb7 {[%clk 0:00:00]}  Rd6 {[%clk 0:00:02]} 0-1


[Site "https://www.chess.com"]

[Event "Titled Tuesday Blitz June 27 Late 2023"]
[White "O`Gorman, Tom"]
[Black "Trost, Edvin"]
[WhiteFideId "2508249"]
[BlackFideId "1729519"]
[WhiteElo "2544"]
[BlackElo "2759"]
[Result "1-0"]
[Round "2"]
[TimeControl "180+2"]
[Date "2023.06.27"]
[WhiteClock "0:00:20"]
[BlackClock "0:00:00"]
[Board "58"]

1. e4 {[%clk 0:03:00]}  g6 {[%clk 0:02:56]} 2. d4 {[%clk 0:03:00]}  Bg7 {[%clk 0:02:57]} 3. Nc3 {[%clk 0:02:59]}  a6 {[%clk 0:02:57]} 4. f4 {[%clk 0:02:57]}  b5 {[%clk 0:02:57]} 5. Nf3 {[%clk 0:02:57]}  d6 {[%clk 0:02:53]} 6. Bd3 {[%clk 0:02:56]}  Nd7 {[%clk 0:02:50]} 7. e5 {[%clk 0:02:56]}  Bb7 {[%clk 0:02:50]} 8. Be4 {[%clk 0:02:56]}  Bxe4 {[%clk 0:02:42]} 9. Nxe4 {[%clk 0:02:57]}  Nh6 {[%clk 0:02:41]} 10. O-O {[%clk 0:02:54]}  O-O {[%clk 0:02:39]} 11. c3 {[%clk 0:02:50]}  Qc8 {[%clk 0:02:23]} 12. Be3 {[%clk 0:02:41]}  Qb7 {[%clk 0:02:23]} 13. Qc2 {[%clk 0:02:40]}  Rac8 {[%clk 0:02:17]} 14. Rad1 {[%clk 0:02:25]}  Nb6 {[%clk 0:02:17]} 15. Bf2 {[%clk 0:02:21]}  Rfd8 {[%clk 0:02:15]} 16. Neg5 {[%clk 0:02:13]}  e6 {[%clk 0:02:05]} 17. h3 {[%clk 0:02:07]}  Nf5 {[%clk 0:02:03]} 18. g4 {[%clk 0:02:03]}  Ne7 {[%clk 0:02:02]} 19. Bh4 {[%clk 0:01:58]}  Nbd5 {[%clk 0:01:58]} 20. Qd2 {[%clk 0:01:56]}  Nb6 {[%clk 0:01:53]} 21. Rde1 {[%clk 0:01:54]}  c5 {[%clk 0:01:49]} 22. Ne4 {[%clk 0:01:45]}  cxd4 {[%clk 0:01:41]} 23. cxd4 {[%clk 0:01:38]}  Nc4 {[%clk 0:01:33]} 24. Qf2 {[%clk 0:01:33]}  Nd5 {[%clk 0:01:20]} 25. Bxd8 {[%clk 0:01:23]}  Rxd8 {[%clk 0:01:19]} 26. b3 {[%clk 0:01:20]}  Nxf4 {[%clk 0:01:10]} 27. Qg3 {[%clk 0:01:19]}  Nd3 {[%clk 0:01:10]} 28. bxc4 {[%clk 0:01:17]}  Nxe1 {[%clk 0:01:10]} 29. Rxe1 {[%clk 0:01:18]}  dxe5 {[%clk 0:01:10]} 30. dxe5 {[%clk 0:01:11]}  bxc4 {[%clk 0:01:08]} 31. Nf6+ {[%clk 0:01:07]}  Kh8 {[%clk 0:00:49]} 32. Ng5 {[%clk 0:00:55]}  h6 {[%clk 0:00:46]} 33. Nge4 {[%clk 0:00:47]}  Rd3 {[%clk 0:00:43]} 34. Qf2 {[%clk 0:00:32]}  Rxh3 {[%clk 0:00:37]} 35. Rd1 {[%clk 0:00:32]}  Rd3 {[%clk 0:00:36]} 36. Rxd3 {[%clk 0:00:32]}  Qb1+ {[%clk 0:00:35]} 37. Qf1 {[%clk 0:00:28]}  Qb6+ {[%clk 0:00:30]} 38. Kh1 {[%clk 0:00:25]}  cxd3 {[%clk 0:00:30]} 39. Qxd3 {[%clk 0:00:26]}  Bf8 {[%clk 0:00:23]} 40. Kg2 {[%clk 0:00:19]}  Qb2+ {[%clk 0:00:19]} 41. Kf3 {[%clk 0:00:19]}  Qxe5 {[%clk 0:00:08]} 42. Qc3 {[%clk 0:00:19]}  Qxc3+ {[%clk 0:00:00]} 43. Nxc3 {[%clk 0:00:20]} 1-0


[Site "https://www.chess.com"]

[Event "Titled Tuesday Blitz June 27 Late 2023"]
[White "Khripachenko, Alexander"]
[Black "JackRodgers"]
[WhiteFideId "54184975"]
[WhiteElo "2758"]
[BlackElo "2543"]
[Result "1-0"]
[Round "2"]
[TimeControl "180+2"]
[Date "2023.06.27"]
[WhiteClock "0:00:53"]
[BlackClock "0:00:15"]
[Board "59"]

1. e4 {[%clk 0:03:00]}  c5 {[%clk 0:03:00]} 2. Nf3 {[%clk 0:03:00]}  g6 {[%clk 0:03:00]} 3. c3 {[%clk 0:03:00]}  Bg7 {[%clk 0:03:00]} 4. d4 {[%clk 0:03:00]}  cxd4 {[%clk 0:03:00]} 5. cxd4 {[%clk 0:03:01]}  d5 {[%clk 0:03:01]} 6. e5 {[%clk 0:03:02]}  Bg4 {[%clk 0:03:00]} 7. Nbd2 {[%clk 0:03:02]}  Nc6 {[%clk 0:02:59]} 8. Bb5 {[%clk 0:03:00]}  Nh6 {[%clk 0:02:57]} 9. Bxc6+ {[%clk 0:02:59]}  bxc6 {[%clk 0:02:58]} 10. h3 {[%clk 0:03:00]}  Bxf3 {[%clk 0:02:58]} 11. Nxf3 {[%clk 0:03:01]}  O-O {[%clk 0:02:56]} 12. O-O {[%clk 0:03:01]}  Qb6 {[%clk 0:02:55]} 13. b3 {[%clk 0:02:58]}  f6 {[%clk 0:02:53]} 14. Re1 {[%clk 0:02:38]}  Nf7 {[%clk 0:02:31]} 15. e6 {[%clk 0:02:34]}  Nd6 {[%clk 0:02:23]} 16. Ba3 {[%clk 0:02:34]}  Rad8 {[%clk 0:02:07]} 17. Qc2 {[%clk 0:02:33]}  Rfe8 {[%clk 0:01:55]} 18. Rac1 {[%clk 0:02:31]}  Nb5 {[%clk 0:01:54]} 19. Bc5 {[%clk 0:02:30]}  Qb7 {[%clk 0:01:48]} 20. a4 {[%clk 0:02:29]}  Nc7 {[%clk 0:01:48]} 21. Qd3 {[%clk 0:02:24]}  Rc8 {[%clk 0:01:44]} 22. Re2 {[%clk 0:02:17]}  a5 {[%clk 0:01:43]} 23. Ne1 {[%clk 0:02:15]}  Na6 {[%clk 0:01:43]} 24. Ba3 {[%clk 0:02:12]}  Nb4 {[%clk 0:01:41]} 25. Qd2 {[%clk 0:02:12]}  f5 {[%clk 0:01:39]} 26. Nf3 {[%clk 0:01:55]}  Ra8 {[%clk 0:01:31]} 27. Re3 {[%clk 0:01:54]}  Rec8 {[%clk 0:01:29]} 28. Ne5 {[%clk 0:01:53]}  Bxe5 {[%clk 0:01:26]} 29. Rxe5 {[%clk 0:01:54]}  Na6 {[%clk 0:01:22]} 30. Rc3 {[%clk 0:01:54]}  Nb4 {[%clk 0:01:16]} 31. Qg5 {[%clk 0:01:52]}  Rf8 {[%clk 0:01:14]} 32. h4 {[%clk 0:01:52]}  Rf6 {[%clk 0:01:13]} 33. h5 {[%clk 0:01:52]}  Kg7 {[%clk 0:01:12]} 34. hxg6 {[%clk 0:01:50]}  hxg6 {[%clk 0:01:12]} 35. Bc1 {[%clk 0:01:50]}  Rh8 {[%clk 0:01:11]} 36. Bf4 {[%clk 0:01:50]}  Na2 {[%clk 0:01:07]} 37. Rd3 {[%clk 0:01:21]}  Rh5 {[%clk 0:01:06]} 38. Qg3 {[%clk 0:01:20]}  Nb4 {[%clk 0:00:59]} 39. Rd2 {[%clk 0:01:18]}  Qc8 {[%clk 0:00:58]} 40. Rde2 {[%clk 0:01:15]}  Qh8 {[%clk 0:00:55]} 41. f3 {[%clk 0:01:11]}  Nd3 {[%clk 0:00:49]} 42. Qh2 {[%clk 0:01:00]}  Rxh2 {[%clk 0:00:47]} 43. Bxh2 {[%clk 0:01:01]}  Nxe5 {[%clk 0:00:47]} 44. Bxe5 {[%clk 0:01:02]}  Qb8 {[%clk 0:00:46]} 45. Bxb8 {[%clk 0:01:01]}  Kf8 {[%clk 0:00:40]} 46. Kf2 {[%clk 0:01:00]}  Ke8 {[%clk 0:00:40]} 47. Kg3 {[%clk 0:01:00]}  g5 {[%clk 0:00:39]} 48. f4 {[%clk 0:00:59]}  g4 {[%clk 0:00:39]} 49. Re1 {[%clk 0:00:59]}  Kd8 {[%clk 0:00:38]} 50. Be5 {[%clk 0:00:57]}  Rh6 {[%clk 0:00:35]} 51. Rc1 {[%clk 0:00:54]}  Rxe6 {[%clk 0:00:34]} 52. Rc5 {[%clk 0:00:55]}  Kc8 {[%clk 0:00:32]} 53. Rxa5 {[%clk 0:00:55]}  Kb7 {[%clk 0:00:33]} 54. Rc5 {[%clk 0:00:55]}  Rh6 {[%clk 0:00:33]} 55. b4 {[%clk 0:00:55]}  Rh1 {[%clk 0:00:32]} 56. b5 {[%clk 0:00:55]}  cxb5 {[%clk 0:00:28]} 57. Rxb5+ {[%clk 0:00:56]}  Kc6 {[%clk 0:00:28]} 58. Rc5+ {[%clk 0:00:56]}  Kb6 {[%clk 0:00:29]} 59. Rxd5 {[%clk 0:00:57]}  Ra1 {[%clk 0:00:29]} 60. Rd7 {[%clk 0:00:56]}  Rxa4 {[%clk 0:00:23]} 61. Rxe7 {[%clk 0:00:56]}  Ra3+ {[%clk 0:00:23]} 62. Kh4 {[%clk 0:00:55]}  Ra2 {[%clk 0:00:19]} 63. Kg5 {[%clk 0:00:54]}  Rxg2 {[%clk 0:00:18]} 64. Kxf5 {[%clk 0:00:53]}  g3 {[%clk 0:00:19]} 65. Rg7 {[%clk 0:00:54]}  Rg1 {[%clk 0:00:19]} 66. d5 {[%clk 0:00:53]}  g2 {[%clk 0:00:15]} 67. Bd4+ {[%clk 0:00:53]} 1-0


[Site "https://www.chess.com"]

[Event "Titled Tuesday Blitz June 27 Late 2023"]
[White "Manukyan, Artyom"]
[Black "Aradhya, Garg"]
[WhiteFideId "13305786"]
[BlackFideId "25006746"]
[WhiteElo "2542"]
[BlackElo "2757"]
[Result "1-0"]
[Round "2"]
[TimeControl "180+2"]
[Date "2023.06.27"]
[WhiteClock "0:00:14"]
[BlackClock "0:00:37"]
[Board "60"]

1. e4 {[%clk 0:03:00]}  e5 {[%clk 0:02:59]} 2. Nf3 {[%clk 0:02:57]}  Nc6 {[%clk 0:03:00]} 3. Bb5 {[%clk 0:02:56]}  a6 {[%clk 0:03:00]} 4. Bxc6 {[%clk 0:02:56]}  dxc6 {[%clk 0:02:59]} 5. O-O {[%clk 0:02:57]}  Bd6 {[%clk 0:02:59]} 6. d4 {[%clk 0:02:57]}  exd4 {[%clk 0:02:58]} 7. Qxd4 {[%clk 0:02:58]}  f6 {[%clk 0:02:58]} 8. Be3 {[%clk 0:02:59]}  Ne7 {[%clk 0:02:57]} 9. Nbd2 {[%clk 0:02:59]}  Be6 {[%clk 0:02:57]} 10. Rad1 {[%clk 0:02:58]}  Ng6 {[%clk 0:02:48]} 11. Nc4 {[%clk 0:02:57]}  Bxc4 {[%clk 0:02:32]} 12. Qxc4 {[%clk 0:02:56]}  Qd7 {[%clk 0:02:32]} 13. Qb3 {[%clk 0:02:51]}  O-O-O {[%clk 0:02:32]} 14. c4 {[%clk 0:02:43]}  Qe6 {[%clk 0:02:27]} 15. Qc2 {[%clk 0:02:12]}  Rde8 {[%clk 0:01:56]} 16. c5 {[%clk 0:02:03]}  Bf4 {[%clk 0:01:55]} 17. Rd4 {[%clk 0:01:20]}  Bxe3 {[%clk 0:01:45]} 18. fxe3 {[%clk 0:01:21]}  Qxa2 {[%clk 0:01:45]} 19. Rc4 {[%clk 0:01:11]}  Ne5 {[%clk 0:01:40]} 20. Nxe5 {[%clk 0:01:09]}  Rxe5 {[%clk 0:01:40]} 21. Rd1 {[%clk 0:00:25]}  Qa5 {[%clk 0:01:34]} 22. b4 {[%clk 0:00:24]}  Qb5 {[%clk 0:01:19]} 23. Ra1 {[%clk 0:00:24]}  b6 {[%clk 0:01:19]} 24. cxb6 {[%clk 0:00:21]}  Qxb6 {[%clk 0:01:19]} 25. Rxc6 {[%clk 0:00:17]}  Qxe3+ {[%clk 0:01:18]} 26. Kh1 {[%clk 0:00:17]}  Re7 {[%clk 0:01:17]} 27. Rcxa6 {[%clk 0:00:13]}  Re6 {[%clk 0:00:36]} 28. Rxe6 {[%clk 0:00:09]}  c5 {[%clk 0:00:35]} 29. Qxc5+ {[%clk 0:00:06]}  Qxc5 {[%clk 0:00:34]} 30. bxc5 {[%clk 0:00:07]}  Kd7 {[%clk 0:00:34]} 31. Rd6+ {[%clk 0:00:07]}  Kc7 {[%clk 0:00:34]} 32. Ra7+ {[%clk 0:00:08]}  Kb8 {[%clk 0:00:34]} 33. Rxg7 {[%clk 0:00:09]}  Re8 {[%clk 0:00:34]} 34. Rxf6 {[%clk 0:00:08]}  Rc8 {[%clk 0:00:32]} 35. h4 {[%clk 0:00:08]}  Rxc5 {[%clk 0:00:32]} 36. Rf8+ {[%clk 0:00:08]}  Rc8 {[%clk 0:00:33]} 37. Rxc8+ {[%clk 0:00:09]}  Kxc8 {[%clk 0:00:33]} 38. Rxh7 {[%clk 0:00:10]}  Kd8 {[%clk 0:00:34]} 39. Rg7 {[%clk 0:00:10]}  Ke8 {[%clk 0:00:35]} 40. h5 {[%clk 0:00:11]}  Kf8 {[%clk 0:00:36]} 41. h6 {[%clk 0:00:12]}  Ke8 {[%clk 0:00:36]} 42. h7 {[%clk 0:00:13]}  Kf8 {[%clk 0:00:37]} 43. h8=Q# {[%clk 0:00:14]} 1-0


[Site "https://www.chess.com"]

[Event "Titled Tuesday Blitz June 27 Late 2023"]
[White "Santos Ruiz, Miguel"]
[Black "Leenhouts, Koen"]
[WhiteFideId "22291482"]
[BlackFideId "1008439"]
[WhiteElo "2749"]
[BlackElo "2540"]
[Result "1-0"]
[Round "2"]
[TimeControl "180+2"]
[Date "2023.06.27"]
[WhiteClock "0:00:11"]
[BlackClock "0:00:02"]
[Board "62"]

1. e4 {[%clk 0:03:00]}  e6 {[%clk 0:02:53]} 2. d4 {[%clk 0:02:54]}  d5 {[%clk 0:02:52]} 3. Nd2 {[%clk 0:02:49]}  c5 {[%clk 0:02:51]} 4. Ngf3 {[%clk 0:02:48]}  cxd4 {[%clk 0:02:50]} 5. Nxd4 {[%clk 0:02:44]}  Nc6 {[%clk 0:02:49]} 6. Bb5 {[%clk 0:02:40]}  Bd7 {[%clk 0:02:48]} 7. Nxc6 {[%clk 0:02:39]}  bxc6 {[%clk 0:02:49]} 8. Bd3 {[%clk 0:02:39]}  Bd6 {[%clk 0:02:48]} 9. Qe2 {[%clk 0:02:39]}  e5 {[%clk 0:02:39]} 10. O-O {[%clk 0:02:31]}  Ne7 {[%clk 0:02:34]} 11. c4 {[%clk 0:02:28]}  O-O {[%clk 0:02:19]} 12. cxd5 {[%clk 0:02:16]}  cxd5 {[%clk 0:02:20]} 13. exd5 {[%clk 0:02:17]}  Nxd5 {[%clk 0:01:58]} 14. Nc4 {[%clk 0:02:16]}  Bc7 {[%clk 0:01:50]} 15. Rd1 {[%clk 0:02:03]}  Qh4 {[%clk 0:01:19]} 16. Be4 {[%clk 0:01:53]}  Nf6 {[%clk 0:01:14]} 17. Bxa8 {[%clk 0:01:48]}  Rxa8 {[%clk 0:01:15]} 18. h3 {[%clk 0:01:12]}  Re8 {[%clk 0:00:36]} 19. Nd6 {[%clk 0:01:02]}  Bg4 {[%clk 0:00:17]} 20. hxg4 {[%clk 0:00:35]}  Nxg4 {[%clk 0:00:18]} 21. Bf4 {[%clk 0:00:34]}  Bb6 {[%clk 0:00:13]} 22. Rf1 {[%clk 0:00:28]}  Re6 {[%clk 0:00:12]} 23. Nf5 {[%clk 0:00:26]}  Qh5 {[%clk 0:00:11]} 24. Qc4 {[%clk 0:00:16]}  Bd8 {[%clk 0:00:06]} 25. Rad1 {[%clk 0:00:14]}  Re8 {[%clk 0:00:05]} 26. Qc6 {[%clk 0:00:11]}  Rf8 {[%clk 0:00:04]} 27. Qd6 {[%clk 0:00:10]}  exf4 {[%clk 0:00:03]} 28. Qxf8+ {[%clk 0:00:10]}  Kxf8 {[%clk 0:00:02]} 29. Rxd8# {[%clk 0:00:11]} 1-0


[Site "https://www.chess.com"]

[Event "Titled Tuesday Blitz June 27 Late 2023"]
[White "Chor, Kevin"]
[Black "Preotu, Razvan"]
[WhiteFideId "2090740"]
[BlackFideId "2613280"]
[WhiteElo "2532"]
[BlackElo "2736"]
[Result "0-1"]
[Round "2"]
[TimeControl "180+2"]
[Date "2023.06.27"]
[WhiteClock "0:00:00"]
[BlackClock "0:00:30"]
[Board "67"]

1. e4 {[%clk 0:03:00]}  c5 {[%clk 0:02:59]} 2. Nf3 {[%clk 0:03:00]}  d6 {[%clk 0:02:59]} 3. d4 {[%clk 0:03:00]}  cxd4 {[%clk 0:03:00]} 4. Nxd4 {[%clk 0:03:00]}  Nf6 {[%clk 0:03:00]} 5. Nc3 {[%clk 0:03:01]}  a6 {[%clk 0:03:01]} 6. Be2 {[%clk 0:03:01]}  e5 {[%clk 0:03:01]} 7. Nb3 {[%clk 0:03:02]}  Be7 {[%clk 0:03:01]} 8. Be3 {[%clk 0:03:01]}  Be6 {[%clk 0:03:02]} 9. Nd5 {[%clk 0:03:02]}  Nbd7 {[%clk 0:03:00]} 10. Qd3 {[%clk 0:03:02]}  Bxd5 {[%clk 0:02:48]} 11. exd5 {[%clk 0:03:02]}  Rc8 {[%clk 0:02:48]} 12. c4 {[%clk 0:03:01]}  O-O {[%clk 0:02:48]} 13. O-O {[%clk 0:02:59]}  a5 {[%clk 0:02:44]} 14. Rac1 {[%clk 0:02:53]}  g6 {[%clk 0:02:38]} 15. Rfd1 {[%clk 0:02:45]}  b6 {[%clk 0:02:36]} 16. Nd2 {[%clk 0:02:44]}  Ne8 {[%clk 0:02:25]} 17. b3 {[%clk 0:02:41]}  Ng7 {[%clk 0:02:08]} 18. f3 {[%clk 0:02:29]}  f5 {[%clk 0:01:52]} 19. a3 {[%clk 0:02:25]}  f4 {[%clk 0:01:49]} 20. Bf2 {[%clk 0:02:24]}  Bh4 {[%clk 0:01:50]} 21. Ne4 {[%clk 0:02:00]}  Bxf2+ {[%clk 0:01:32]} 22. Nxf2 {[%clk 0:01:51]}  Nf5 {[%clk 0:01:15]} 23. b4 {[%clk 0:01:48]}  axb4 {[%clk 0:01:15]} 24. axb4 {[%clk 0:01:49]}  Ne3 {[%clk 0:01:13]} 25. Rd2 {[%clk 0:01:30]}  b5 {[%clk 0:01:11]} 26. c5 {[%clk 0:01:12]}  dxc5 {[%clk 0:01:11]} 27. Qxb5 {[%clk 0:01:10]}  cxb4 {[%clk 0:01:08]} 28. Rb1 {[%clk 0:00:30]}  Rb8 {[%clk 0:01:01]} 29. Qc6 {[%clk 0:00:26]}  Rb6 {[%clk 0:00:57]} 30. Qa4 {[%clk 0:00:20]}  Nc5 {[%clk 0:00:55]} 31. Qa5 {[%clk 0:00:15]}  Nb7 {[%clk 0:00:49]} 32. Qa7 {[%clk 0:00:15]}  Nd6 {[%clk 0:00:47]} 33. Nd1 {[%clk 0:00:08]}  Nxd1 {[%clk 0:00:45]} 34. Rbxd1 {[%clk 0:00:09]}  Nb5 {[%clk 0:00:45]} 35. Bxb5 {[%clk 0:00:06]}  Rxb5 {[%clk 0:00:45]} 36. d6 {[%clk 0:00:07]}  Qb6+ {[%clk 0:00:39]} 37. Qxb6 {[%clk 0:00:07]}  Rxb6 {[%clk 0:00:40]} 38. d7 {[%clk 0:00:08]}  Rd8 {[%clk 0:00:40]} 39. Re1 {[%clk 0:00:06]}  Rb5 {[%clk 0:00:37]} 40. Rc1 {[%clk 0:00:04]}  Kf7 {[%clk 0:00:37]} 41. Rc6 {[%clk 0:00:03]}  Ke7 {[%clk 0:00:38]} 42. Rc7 {[%clk 0:00:04]}  b3 {[%clk 0:00:38]} 43. Rc1 {[%clk 0:00:04]}  Rxd7 {[%clk 0:00:37]} 44. Rb2 {[%clk 0:00:05]}  Rd3 {[%clk 0:00:32]} 45. Kf2 {[%clk 0:00:03]}  Re3 {[%clk 0:00:30]} 46. Rc7+ {[%clk 0:00:02]}  Kd6 {[%clk 0:00:29]} 47. Rxh7 {[%clk 0:00:03]}  Rc3 {[%clk 0:00:29]} 48. Rh8 {[%clk 0:00:02]}  Rc2+ {[%clk 0:00:29]} 49. Rxc2 {[%clk 0:00:02]}  bxc2 {[%clk 0:00:30]} 50. Rc8 {[%clk 0:00:03]}  Rc5 {[%clk 0:00:29]} 51. Rd8+ {[%clk 0:00:00]}  Ke7 {[%clk 0:00:30]} 0-1


[Site "https://www.chess.com"]